Cogmind - Beta 16 *** ADVENTURER MODE // 2025.11.09 @ 14:10:36 Player: CaptainWalker Result: Self-destructed Performance ------------- Evolutions (1) 500 Regions Visited (3) 600 Robots Destroyed (6) 30 Value Destroyed (83) 83 Prototype IDs (0) 0 Alien Tech Used (0) 0 Bonus (200) 200 TOTAL SCORE: 1413 Bonus ------- Pacifist 200 Cogmind --------- Core Integrity 380/400 Matter 439/450 Energy 148/150 System Corruption 0% Temperature Cool (0) Movement Rolling (80) Location -9/Mines Parts ------- > --- POWER (2) -------- Light Ion Engine Light Ion Engine > --- PROPULSION (3) --- Light Treads Wheel Wheel > --- UTILITY (2) ------ Small Storage Unit Compact Matter Pod > --- WEAPON (2) ------- Medium Laser Light Assault Rifle > --- INVENTORY (8) ---- Light Ion Engine Light Treads Aluminum Leg Flight Unit Light Assault Rifle Peak State ------------ > --- POWER ------------ Light Ion Engine Light Ion Engine > --- PROPULSION ------- Light Treads Wheel Wheel > --- UTILITY ---------- Small Storage Unit Compact Matter Pod > --- WEAPON ----------- Medium Laser Light Assault Rifle > --- INVENTORY -------- Light Ion Engine Light Treads Aluminum Leg Flight Unit Light Assault Rifle [Rating: 11] Favorites ----------- Power Light Ion Engine Engine Light Ion Engine Propulsion Wheel Treads Light Treads Wheel Wheel Utility Small Storage Unit Storage Small Storage Unit Protection Light Armor Plating Weapon Light Assault Rifle Energy Gun Medium Laser Ballistic Gun Light Assault Rifle Build | -11 -10 -9 -9 ------- Run | Yrd Mat Mat Min Slots Evolved 2 | . . 2 . Power 1 | . . 1 . Propulsion 1 | . . 1 . Utility . | . . . . Weapon . | . . . . Parts Attached 11 | 5 2 1 3 Power 3 | 1 . . 2 Engine 3 | 1 . . 2 Core . | . . . . Reactor . | . . . . Propulsion 3 | 2 . 1 . Treads 1 | 1 . . . Leg . | . . . . Wheel 2 | 1 . 1 . Hover . | . . . . Flight . | . . . . Utility 3 | 1 1 . 1 Device . | . . . . Storage 2 | 1 . . 1 Processor . | . . . . Hackware . | . . . . Protection 1 | . 1 . . Artifact . | . . . . Weapon 2 | 1 1 . . Energy Gun 1 | . 1 . . Energy Cannon . | . . . . Ballistic Gun 1 | 1 . . . Ballistic Cannon . | . . . . Launcher . | . . . . Special Weapon . | . . . . Impact Weapon . | . . . . Slashing Weapon . | . . . . Piercing Weapon . | . . . . Special Melee Weapon . | . . . . Unidentified Prototypes . | . . . . Parts Lost . | . . . . Power . | . . . . Propulsion . | . . . . Utility . | . . . . Weapon . | . . . . Highest Loss Streak . | . . . . To Critical Strikes . | . . . . Average Backups 4 | 3 4 5 5 Power . | . 1 1 1 Propulsion 2 | 1 2 3 3 Utility . | . . . . Weapon 1 | 1 1 1 1 Tool/Special . | . . . . Unused Backups 5 | . . . 5 Power 1 | . . . 1 Propulsion 3 | . . . 3 Utility . | . . . . Weapon 1 | . . . 1 Tool/Special . | . . . . Average Slot Usage (%) 87 | . 94 74 89 Engine 13 | . 14 5 17 Treads 12 | . 14 11 11 Wheel 18 | . 14 19 22 Storage 14 | . 14 11 16 Protection 5 | . 12 5 . Energy Gun 10 | . 10 11 11 Ballistic Gun 12 | . 14 11 11 Peak Build Rating 11 | 5 7 8 11 Average Rating 7 | 3 6 6 9 On Entrance 4 | . 5 7 6 Avg Prop Armor Cover (%) 11 | 16 10 12 11 Naked Turns . | . . . . Heaviest Build 15 | 9 14 14 15 Greatest Support 20 | 10 10 20 20 Greatest Overweight (x) 1 | . 1 1 . Average Overweight (x) . | . . . . Largest Inventory Capacity 8 | 8 8 8 8 Average Capacity 7 | 7 8 8 8 Most Carried 6 | 5 6 6 6 Average Carried 4 | 3 4 5 4 Final Capacity 8 | 8 8 8 8 Final Carried 5 | 5 5 5 5 Class Distribution -------------------- 100% | Mutant Dominant Class ---------------- Mutant | -10/Materials Mutant | -9/Materials Mutant | -9/Mines Resources | -11 -10 -9 -9 ----------- Run | Yrd Mat Mat Min Matter Collected 330 | 217 . 69 44 Remotely . | . . . . Salvage Created 139 | . . 84 55 Parts 13 | . . 5 8 Haulers Intercepted . | . . . . Recyclers Shooed 2 | . . . 2 Parts Field Recycled . | . . . . Retrieved Matter . | . . . . Parts Self-Destructed . | . . . . Prevented . | . . . . Parts Restored . | . . . . Kills | -11 -10 -9 -9 ------- Run | Yrd Mat Mat Min Combat Hostiles Destroyed 4 | . . 1 3 Guns 4 | . . 1 3 Classes Destroyed 4 | . . 2 2 Worker 1 | . . . 1 Tunneler 1 | . . 1 . Swarmer 3 | . . . 3 Sentry 1 | . . 1 . Best Kill Streak 3 | . . 1 3 Combat Bots Only 3 | . . 1 3 Max Kills in Single Turn 1 | . . 1 1 Gunslinging . | . . . . Exploded . | . . . . Melee . | . . . . Uniques/NPCs Destroyed . | . . . . Combat | -11 -10 -9 -9 -------- Run | Yrd Mat Mat Min Hostile Shots Fired 30 | . 10 4 16 Missed 9 | . 4 2 3 Hits 21 | . 6 2 13 Projectile 21 | . 6 2 13 Damage Taken 169 | . 61 23 85 Core 20 | . . . 20 Absorbed by Shields . | . . . . Ignored by Resistances 50 | . 18 6 26 Core Remaining (%) 100 | 100 100 . . Volleys Fired 31 | . 1 9 21 Largest 2 | . 2 2 2 Hottest 70 | . 70 70 70 Shots Fired 62 | . 2 18 42 Gun 62 | . 2 18 42 Cannon . | . . . . Launcher . | . . . . Special . | . . . . Kinetic 31 | . 1 9 21 Thermal 31 | . 1 9 21 Explosive . | . . . . Electromagnetic . | . . . . Robot Hit Streak 7 | . 2 7 4 Robot Miss Streak 2 | . . 2 2 Penetration Max . | . . . . Secondary Targets 1 | . . . 1 Max Gunslinging Chain 1 | . . . 1 Shots Hit Robots 24 | . 2 10 12 Core Hits 10 | . 1 3 6 Critical Kills . | . . . . Critical Parts Destroyed . | . . . . Critical Strikes 1 | . . . 1 Burn 1 | . . . 1 Melee Attacks . | . . . . Impact . | . . . . Slashing . | . . . . Piercing . | . . . . Sneak Attacks . | . . . . Combat Hostiles . | . . . . Follow-up Attacks . | . . . . Damage Inflicted 252 | . 18 102 132 Guns 252 | . 18 102 132 Cannons . | . . . . Explosions . | . . . . Melee . | . . . . Ramming . | . . . . Kinetic 91 | . 6 40 45 Thermal 161 | . 12 62 87 Explosive . | . . . . Electromagnetic . | . . . . Impact . | . . . . Slashing . | . . . . Piercing . | . . . . Highest Corruption . | . . . . Average Corruption . | . . . . Corruption Purged . | . . . . Corruption Blocked . | . . . . Overload Shots . | . . . . Overflow Damage . | . . . . Projectiles . | . . . . Explosions . | . . . . Melee . | . . . . Knockbacks . | . . . . Impact . | . . . . Kinetic . | . . . . Secondary . | . . . . Self-Inflicted Damage . | . . . . Shots . | . . . . Rammed . | . . . . Targets Rammed . | . . . . Kicked . | . . . . Crushed . | . . . . Highest Temperature 132 | . 42 37 132 Average Temperature 42 | . 26 16 51 Received Heat Transfer 54 | . 45 9 . Siege Activations . | . . . . Martial Activations . | . . . . Shielding Activations . | . . . . Robots Disrupted . | . . . . Combat Hostiles . | . . . . Robots Corrupted . | . . . . Combat Hostiles . | . . . . Parts Fried . | . . . . Impact Corruptions . | . . . . Robots Melted . | . . . . Combat Hostiles . | . . . . Parts Melted 2 | . . 1 1 Heat Transferred 555 | . 37 185 333 Parts Sabotaged . | . . . . Parts Stolen . | . . . . Parts Stripped . | . . . . Power Chain Reactions . | . . . . Alert | -11 -10 -9 -9 ------- Run | Yrd Mat Mat Min Maximum Alert Level . | . . . . Low Security (%) 100 | 100 100 100 100 Level 1 . | . . . . Level 2 . | . . . . Level 3 . | . . . . Level 4 . | . . . . Level 5 . | . . . . High Security . | . . . . Max Security . | . . . . Peak Influence 70 | . . 30 70 Initial . | . . . . Average 9 | . . 5 22 Influence Increases 110 | . . 35 75 Destroy 0b10 Robot/C 80 | . . 20 60 Destroy 0b10 Robot/NC 10 | . . 5 5 Destroy Leader 20 | . . 10 10 Influence Decreases 110 | . . 35 75 Time Decay 110 | . . 35 75 Squads Dispatched 2 | . . 2 . Investigation . | . . . . Extermination . | . . . . Reinforcement 2 | . . 2 . Assault . | . . . . Garrison . | . . . . Intercept . | . . . . Searches Triggered . | . . . . Construction Impeded . | . . . . Haulers Reinforced . | . . . . Active Scanning Responses . | . . . . Cargo Convoy Interrupts . | . . . . Stealth | -11 -10 -9 -9 --------- Run | Yrd Mat Mat Min Distress Signals . | . . . . Communications Jammed . | . . . . Distress Signals . | . . . . Times Spotted 9 | . 5 1 3 Peak Tracking Total 5 | . 5 2 3 Tactical Retreats . | . . . . Traps | -11 -10 -9 -9 ------- Run | Yrd Mat Mat Min Traps Triggered 1 | . . 1 . Indirectly . | . . . . Trap Hack Attempts . | . . . . Triggered . | . . . . Disarmed . | . . . . Reprogrammed . | . . . . Reused . | . . . . Traps Extracted . | . . . . Installed . | . . . . Triggered . | . . . . Machines | -11 -10 -9 -9 ---------- Run | Yrd Mat Mat Min Machines Disabled . | . . . . Max in Single Turn . | . . . . Machines Repaired . | . . . . Machines Dismantled . | . . . . Machines Sabotaged . | . . . . Overloaded Fab Kills . | . . . . Hacking | -11 -10 -9 -9 --------- Run | Yrd Mat Mat Min Machines Accessed . | . . . . Terminals . | . . . . Fabricators . | . . . . Repair Stations . | . . . . Recycling Units . | . . . . Scanalyzers . | . . . . Garrison Access . | . . . . Total Hacks . | . . . . Successful . | . . . . Failed . | . . . . Catastrophic . | . . . . Database Lockouts . | . . . . Manual . | . . . . Terminals . | . . . . Fabricators . | . . . . Repair Stations . | . . . . Recycling Units . | . . . . Scanalyzers . | . . . . Garrison Access . | . . . . Terminal Hacks . | . . . . Fabricator Hacks . | . . . . Repair Station Hacks . | . . . . Recycling Unit Hacks . | . . . . Scanalyzer . | . . . . Garrison Access Hacks . | . . . . Unauthorized Hacks . | . . . . Terminals . | . . . . Fabricators . | . . . . Repair Stations . | . . . . Recycling Units . | . . . . Scanalyzers . | . . . . Garrison Access . | . . . . Data Cores Recovered . | . . . . Used . | . . . . Hacking Detections . | . . . . Full Trace Events . | . . . . Feedback Events . | . . . . Feedback Blocked . | . . . . Robot Schematics Acquired . | . . . . Robots Built . | . . . . Authchips . | . . . . Time . | . . . . Total Robot Build Rating . | . . . . Part Schematics Acquired . | . . . . Parts Built . | . . . . Authchips . | . . . . Time . | . . . . Total Part Build Rating . | . . . . Part Studies Acquired . | . . . . Parts Repaired . | . . . . Time . | . . . . Parts Recycled . | . . . . Recycled Matter . | . . . . Retrieved Matter . | . . . . Retrieved Components . | . . . . Parts Scanalyzed . | . . . . Part Schematics Acquired . | . . . . Parts Damaged . | . . . . Bothacking | -11 -10 -9 -9 ------------ Run | Yrd Mat Mat Min Used RIF Installer . | . . . . Robots Hacked . | . . . . Non-combat . | . . . . Combat . | . . . . Robot Hacks Applied . | . . . . Relay Couplers Released . | . . . . Fabnet Peak Effective % . | . . . . Robots Rewired . | . . . . Allies Hacked . | . . . . Hacks Repelled . | . . . . Allies | -11 -10 -9 -9 -------- Run | Yrd Mat Mat Min Total Allies . | . . . . Largest Group . | . . . . Highest-Rated Group . | . . . . Highest-Rated Ally . | . . . . Total Orders . | . . . . Ally Attacks . | . . . . Total Damage . | . . . . Kills . | . . . . Allies Corrupted . | . . . . Allies Melted . | . . . . Intel | -11 -10 -9 -9 ------- Run | Yrd Mat Mat Min Active Infowar (turns) . | . . . . Robot Analysis Total . | . . . . Derelict Logs Recovered . | . . . . Drone Launches . | . . . . Drone Recoveries . | . . . . Exploration | -11 -10 -9 -9 ------------- Run | Yrd Mat Mat Min Turns Passed 645 | 61 202 145 237 Spaces Moved 632 | 64 208 145 215 Core 17 | 17 . . . Treads . | . . . . Legs . | . . . . Wheels 615 | 47 208 145 215 Hover . | . . . . Flight . | . . . . Fastest Speed 50 | 50 80 80 80 Average Speed 84 | 72 93 81 80 Slowest Speed 95 | 80 95 95 80 Overloaded Moves . | . . . . Propulsion Burnouts . | . . . . Robots Hopped . | . . . . Potential Cave-ins . | . . . . Cave-ins Triggered . | . . . . Exploration Rate (%) 21 | 3 31 14 38 Regions Visited 3 Branch Regions 1 Pre-discovered Areas . | . . . . Known Exits Taken . | . . . . Unknown Exits Taken 3 | 1 1 1 . Scrap Searched . | . . . . Spaces Dug . | . . . . Terrain Destroyed . | . . . . Melee . | . . . . Projectile . | . . . . AOE . | . . . . Terrain Rammed . | . . . . Walls Destroyed . | . . . . Machines Disabled . | . . . . Actions | -11 -10 -9 -9 --------- Run | Yrd Mat Mat Min Total 687 | 78 212 155 242 Wait . | . . . . Move 629 | 63 207 144 215 Hop . | . . . . Pick Up 16 | 10 2 1 3 Fast Attach . | . . . . Attach 11 | 5 2 1 3 Detach . | . . . . Swap . | . . . . Drop . | . . . . Fire 31 | . 1 9 21 Melee . | . . . . Ram . | . . . . Kick . | . . . . Crush . | . . . . Escape Stasis . | . . . . Rewire . | . . . . Trap . | . . . . Miscellaneous . | . . . . Route ------- -11/Scrapyard -10/Materials (discovered 2 exits: [*Mat] / [*Min]) -9/Materials -9/Mines (discovered 1 exit: [*Mat]) History --------- Turn | Location | Event 15 | -11/Scrapyard | Discovered new exit (range 16) 62 | -11/Scrapyard | Entered Materials 237 | -10/Materials | Discovered new exit (range 15) 248 | -10/Materials | Discovered new exit (range 15) 264 | -10/Materials | Entered another Materials area 264 | -9/Materials | Evolved 2 slots: Power x1, Propulsion x1 304 | -9/Materials | Build established: Mutant 392 | -9/Materials | Discovered new exit (range 15) 409 | -9/Materials | Entered Mines 521 | -9/Mines | Discovered new exit (range 13) 646 | -9/Mines | Self-destructed Last Messages --------------- [Achievement: I Have A Map?] 00521_ EXIT=FOUND 00521_ K-01 Serf collects debris. 00528_ Acquired Com. Matter Pod. 00529_ K-01 Serf collects debris. 00530_ Extracted 10 matter. 00533_ K-01 Serf collects debris. 00642_ A message is triggered: "If you're looking for Megawrench, sorry but we're not in our cave right now, after essentially being evicted by all these Unaware tunnelers." 00645_ "Blame H1-IDC, who apparently didn't care about the consequences of repeatedly making a mess in Materials. Shooting at robots and generally destroying stuff raised the alert level high enough to trigger assault squads over in the main complex, and they later decided the best way to defend their interests would be to start expanding in this direction." Map ----- +----------------------------------------------------+ | ???????????????????????????????????????? | | ???????????###?????????????????????????? | | ??????????##T######????????????????????? | | ??????????# #????????????????????? | | ??????????# """=%#????????????????????? | | ???????#### """= #????????????????????? | | ?#####?# """%%#????????????????????? | | ## ### ## #????????????????????? | | # ## ## [=#?????????#########??? | | ## #?????????# #??? | | ### ## #?????????# #??? | | # #?# ## #?????????# """ #??? | | ## ### ## #???####### """ #??? | | ?# ## ## #???# """ #??? | | ?## = ## #???# ##### #??? | | ??# %##############???# #???# #??? | | ??# #????????????????# #???## ######??? | | ??# #????????????????# ##???# #???????? | | ??# #???????????###### #??## #???????? | | ### #?????????### #### #???????? | | ## #?????????# ## #???????? | | ##????????# #### ##???????? | | #????????## ##?## ##????????? | | # #?????????### #### ####?????????? | | ## ##??????????## #????????????? | | ### #??????###### @#????????????? | | ## #??????# #####????????????? | | ### ####???# #???????????????? | | ### # ##??# #### #?????????????? | | #### #??## #????????????? | | #???? #????????????? | | """" #????# ##????????????? | | """" #########????? #?????????????? | | """" ##????????????? #?????????????? | | ##?????????????? #?????????????? | | ####??????????????? #?????????????? | | ###??????????????????? ?????????????? | | #????????????????????? ?????????????? | | #????????????????????? ????????????? | | ?????????????????????? ????????????? | | ????????????????????? ???????????? | | ???????????????????????????????????? | | ??????????????????????????????????? | | #### ??????????????????????????????????? | | ????# ?????????????????????????????????? | | ???????????????????????????????????????? | | ???????????????????????????????????????? | | ???????????????????????????????????????? | | ???????????????????????????????????????? | | ???????????????????????????????????????? | +----------------------------------------------------+ Best States ------------- Heat Dissipation 28 Energy Generation 15 Energy Capacity 150 Matter Stores 450 Matter Capacity 450 Sight Range 16 Terrain Scan Density 10 Armor Coverage 150 Resistance: KI 20 Resistance: TH 20 Resistance: EX 20 Resistance: EM 20 Resistance: I 20 Resistance: S 20 Resistance: P 20 Evasion (%) 50 Recoil Reduction 1 Offensive Hacking 10 Item Schematics ----------------- None Robot Schematics ------------------ None Fabricated ------------ Nothing Repaired ---------- Nothing Studied --------- None Alien Tech Used ----------------- None Achievements -------------- I Have A Map? Organ Harvest Uninvited Guest Challenges ------------ None Game ------ Seed NetworkedCompactCarapace Manual? 0 Play Time 00:16:26 Cumulative 0.2 hours Start 2025.11.08 @ 21:42:37 End 2025.11.09 @ 14:10:36 Sessions 3 Manual Loads 0 Difficulty Adventurer Special Mode None Game No. 0 Rogue -1 Adventurer 1 Explorer 0 Win Type - Total 0 Types 0/0/0/0/0/0/0/0/0/0 Lore% 0 Gallery% 0 Achievement% 0 Wizard Run 0 Options --------- Layout 1 ASCII 0 Keyboard 0 Movement Arrows Keybinds 0 Fullscreen 2 Font 18/SmallcapsGlow Map View 25x20 Zoom Use 99% Tactical HUD 1 Map Filters NONE Filters NONE Steam X RUN: b40f97ef-48df-4bd9-8fb7-fa16ef5e21c6